Departmental Area,Entity,Payment Date,Expense Type,Expense Area,Supplier Name,Payment Reference,Invoice Distribution Amount,Description,Suplier Type,Expenditure Type
UK Statistics Family,Office for National Statistics,02/11/2020,Exp - Purchase Of Goods/Services - Incentive Payments,Survey Management,P & Mm Ltd,190429,"6,466.00",Survey Response Incentive Vouchers,Large,Programme Expenditure
UK Statistics Family,Office for National Statistics,02/11/2020,Exp - Purchase Of Goods/Services - Incentive Payments,Social Survey Transformation Newport,P & Mm Ltd,190429,"60,801.00",Survey Response Incentive Vouchers,Large,Programme Expenditure
UK Statistics Family,Office for National Statistics,02/11/2020,Exp - Purchase Of Goods/Services - Incentive Payments,Survey Management,P & Mm Ltd,190429,"206,351.40",Survey Response Incentive Vouchers,Large,Programme Expenditure
UK Statistics Family,Office for National Statistics,02/11/2020,Rent Payable,Property Titchfield,Eaton Aerospace Limited,190433,"28,188.60",Rental Charges,Large,Programme Expenditure
UK Statistics Family,Office for National Statistics,02/11/2020,Marketing & Media,Stakeholder Engagement And Comms,Manning Gottlieb,190436,"29,439.48",Marketing Services,Large,Programme Expenditure
UK Statistics Family,Office for National Statistics,03/11/2020,Telecoms,IT Operations,Crown Hosting Data Centres Limited,190440,"2,580.00",Information Management Services,SME,Programme Expenditure
UK Statistics Family,Office for National Statistics,03/11/2020,Hosting,IT Operations,Crown Hosting Data Centres Limited,190440,"73,481.24",Information Management Services,SME,Programme Expenditure
UK Statistics Family,Office for National Statistics,03/11/2020,Exp - Permanent UK Staff - PRP Voucher Payments,ONS Corporate Funds,Park Retail Ltd,190443,92.50,Performance Reward Vouchers,Large,Programme Expenditure
UK Statistics Family,Office for National Statistics,03/11/2020,Exp - Purchase Of Goods/Services - Incentive Payments,Survey Management,Park Retail Ltd,190443,"39,406.84",Survey Response Incentive Vouchers,Large,Programme Expenditure
UK Statistics Family,Office for National Statistics,03/11/2020,Exp - Purchase Of Goods/Services - Incentive Payments,Survey Management,Park Retail Ltd,190443,"2,065.98",Survey Response Incentive Vouchers,Large,Programme Expenditure
UK Statistics Family,Office for National Statistics,03/11/2020,Exp - Purchase Of Goods/Services - Incentive Payments,Survey Management,Park Retail Ltd,190443,706.94,Survey Response Incentive Vouchers,Large,Programme Expenditure
UK Statistics Family,Office for National Statistics,03/11/2020,Exp - Purchase Of Goods/Services - Incentive Payments,Survey Management,Park Retail Ltd,190443,"1,734.22",Survey Response Incentive Vouchers,Large,Programme Expenditure
UK Statistics Family,Office for National Statistics,03/11/2020,Exp - Purchase Of Goods/Services - Contractors,Testing,Concept Information Technology Ltd T/A Concept Resourcing,190445,"1,588.25",Information Management Services,Large,Programme Expenditure
UK Statistics Family,Office for National Statistics,03/11/2020,Exp - Purchase Of Goods/Services - Contractors,Testing,Concept Information Technology Ltd T/A Concept Resourcing,190445,"9,000.07",Information Management Services,Large,Programme Expenditure
UK Statistics Family,Office for National Statistics,03/11/2020,Exp - Short-Term Contract & Agency Staff - Full Cost,International Trade And Transactions,Concept Information Technology Ltd T/A Concept Resourcing,190445,"4,029.74",Information Management Services,Large,Programme Expenditure
UK Statistics Family,Office for National Statistics,03/11/2020,Exp - Short-Term Contract & Agency Staff - Full Cost,International Trade And Transactions,Concept Information Technology Ltd T/A Concept Resourcing,190445,"4,029.74",Information Management Services,Large,Programme Expenditure
UK Statistics Family,Office for National Statistics,03/11/2020,Exp - Purchase Of Goods/Services - Contractors,Census & Soc Methodology Dd,Concept Information Technology Ltd T/A Concept Resourcing,190445,"7,254.00",Information Management Services,Large,Programme Expenditure
UK Statistics Family,Office for National Statistics,03/11/2020,Exp - Short-Term Contract & Agency Staff - Full Cost,Data Architecture,Concept Information Technology Ltd T/A Concept Resourcing,190445,"4,524.57",Information Management Services,Large,Programme Expenditure
UK Statistics Family,Office for National Statistics,03/11/2020,Exp - Purchase Of Goods/Services - Contractors,Data Architecture,Concept Information Technology Ltd T/A Concept Resourcing,190445,"10,620.00",Information Management Services,Large,Programme Expenditure
UK Statistics Family,Office for National Statistics,03/11/2020,Exp - Purchase Of Goods/Services - IT Contractual Services,Tech Delivery Data As A Platform,Concept Information Technology Ltd T/A Concept Resourcing,190445,"10,500.00",Information Management Services,Large,Programme Expenditure
UK Statistics Family,Office for National Statistics,03/11/2020,Exp - Short-Term Contract & Agency Staff - Full Cost,Business Statistics Transformation,Concept Information Technology Ltd T/A Concept Resourcing,190445,4029.74,Information Management Services,Large,Programme Expenditure
UK Statistics Family,Office for National Statistics,03/11/2020,Exp - Short-Term Contract & Agency Staff - Full Cost,Interviewer Management TU,Concept Information Technology Ltd T/A Concept Resourcing,190445,"2,045.29",Information Management Services,Large,Programme Expenditure
UK Statistics Family,Office for National Statistics,03/11/2020,Exp - Short-Term Contract & Agency Staff - Full Cost,Prices Division,Concept Information Technology Ltd T/A Concept Resourcing,190445,"3,566.87",Information Management Services,Large,Programme Expenditure
UK Statistics Family,Office for National Statistics,03/11/2020,Postage,Survey Processing Centre,DHL Parcel Ltd,190448,"136,355.23",Courier Services,Large,Programme Expenditure
UK Statistics Family,Office for National Statistics,03/11/2020,Exp - Purchase Of Goods/Services - Contractors,Testing,La International,190449,"20,344.38",Information Management Services,SME,Programme Expenditure
UK Statistics Family,Office for National Statistics,03/11/2020,Exp - Purchase Of Goods/Services - Contractors,Testing,La International,190449,"2,563.08",Information Management Services,SME,Programme Expenditure
UK Statistics Family,Office for National Statistics,03/11/2020,Exp - Purchase Of Goods/Services - Contractors,Portfolio Delivery,La International,190449,"3,366.90",Information Management Services,SME,Programme Expenditure
UK Statistics Family,Office for National Statistics,03/11/2020,Exp - Purchase Of Goods/Services - Contractors,Data Architecture,La International,190449,"6,407.68",Information Management Services,SME,Programme Expenditure
UK Statistics Family,Office for National Statistics,03/11/2020,Exp - Purchase Of Goods/Services - Contractors,Data Architecture,La International,190449,"3,524.22",Information Management Services,SME,Programme Expenditure
UK Statistics Family,Office for National Statistics,03/11/2020,Exp - Purchase Of Goods/Services - Contractors,Data Architecture,La International,190449,"18,005.64",Information Management Services,SME,Programme Expenditure
UK Statistics Family,Office for National Statistics,03/11/2020,Exp - Purchase Of Goods/Services - Contractors,Tech Delivery SRS,La International,190449,"3,588.30",Information Management Services,SME,Programme Expenditure
UK Statistics Family,Office for National Statistics,03/11/2020,Exp - Purchase Of Goods/Services - Contractors,Tech Delivery Legacy Sp,La International,190449,"14,096.88",Information Management Services,SME,Programme Expenditure
UK Statistics Family,Office for National Statistics,03/11/2020,Exp - Purchase Of Goods/Services - Contractors,IT Applications,La International,190449,"11,175.30",Information Management Services,SME,Programme Expenditure
UK Statistics Family,Office for National Statistics,03/11/2020,Surveys,Business Outputs And Developments,Iff Research,190458,"185,014.80",Statistical Services,Large,Programme Expenditure
UK Statistics Family,Office for National Statistics,04/11/2020,Exp - Purchase Of Goods/Services - IT Contractual Services,Strategy And Architecture,Empiric Solutions Limited,190472,"68,640.00",Information Management Services,Large,Programme Expenditure
UK Statistics Family,Office for National Statistics,04/11/2020,Accommodation & Building Management,Interview Management IPS,Heathrow Airport,190476,"58,341.90",Rental Charges,Large,Programme Expenditure
UK Statistics Family,Office for National Statistics,04/11/2020,Exp - Purchase Of Goods/Services - Contractors,Security Advisory,Certes Computing Ltd,190479,"20,816.40",Information Management Services,SME,Programme Expenditure
UK Statistics Family,Office for National Statistics,04/11/2020,Exp - Purchase Of Goods/Services - Contractors,Tech Delivery Data As A Platform,Certes Computing Ltd,190479,"8,006.28",Information Management Services,SME,Programme Expenditure
UK Statistics Family,Office for National Statistics,04/11/2020,Exp - Purchase Of Goods/Services - Contractors,Digital Delivery,Certes Computing Ltd,190479,"9,360.00",Information Management Services,SME,Programme Expenditure
UK Statistics Family,Office for National Statistics,04/11/2020,Exp - Purchase Of Goods/Services - Contractors,Tech Delivery Legacy Sp,Malikshaw Interim & Executive,190487,"15,126.67",Information Management Services,SME,Programme Expenditure
UK Statistics Family,Office for National Statistics,04/11/2020,Exp - Purchase Of Goods/Services - Contractors,Tech Delivery Legacy Sp,Malikshaw Interim & Executive,190487,"15,840.00",Information Management Services,SME,Programme Expenditure
UK Statistics Family,Office for National Statistics,04/11/2020,Exp - Purchase Of Goods/Services - Contractors,IT Applications,Malikshaw Interim & Executive,190487,"15,840.00",Information Management Services,SME,Programme Expenditure
UK Statistics Family,Office for National Statistics,04/11/2020,Exp - Short-Term Contract & Agency Staff - Full Cost,Data As A Service,Malikshaw Interim & Executive,190487,5922,Information Management Services,SME,Programme Expenditure
UK Statistics Family,Office for National Statistics,04/11/2020,Other Goods And Services,Overseas Development,"Foreign, Commonwealth & Development Office",190493,"49,795.25",Subscription and Support Services,Large,Programme Expenditure
UK Statistics Family,Office for National Statistics,05/11/2020,Exp - Purchase Of Goods/Services - Incentive Payments,Survey Management,Park Retail Ltd,190683,"34,338.16",Survey Response Incentive Vouchers,Large,Programme Expenditure
UK Statistics Family,Office for National Statistics,05/11/2020,Exp - Purchase Of Goods/Services - Incentive Payments,Survey Management,Park Retail Ltd,190683,"3,380.08",Survey Response Incentive Vouchers,Large,Programme Expenditure
UK Statistics Family,Office for National Statistics,05/11/2020,Surveys,Social Surveys Division,Nisra,190688,"102,768.10",Statistical Services,Large,Programme Expenditure
UK Statistics Family,Office for National Statistics,05/11/2020,Exp - Purchase Of Goods/Services - IT Contractual Services,Strategy And Architecture,Medley Business Solutions Ltd,190690,"27,561.60",Information Management Services,Large,Programme Expenditure
UK Statistics Family,Office for National Statistics,05/11/2020,Exp - Purchase Of Goods/Services - Contractors,Programme Delivery,Certes Computing Ltd,190691,"13,450.00",Information Management Services,SME,Programme Expenditure
UK Statistics Family,Office for National Statistics,05/11/2020,Exp - Purchase Of Goods/Services - Contractors,Programme Delivery,Certes Computing Ltd,190691,"12,810.00",Information Management Services,SME,Programme Expenditure
UK Statistics Family,Office for National Statistics,05/11/2020,Exp - Purchase Of Goods/Services - Contractors,Strategy And Architecture,Certes Computing Ltd,190691,"20,815.50",Information Management Services,SME,Programme Expenditure
UK Statistics Family,Office for National Statistics,05/11/2020,Exp - Purchase Of Goods/Services - Contractors,Digital Delivery,Malikshaw Interim & Executive,190695,"14,439.10",Information Management Services,SME,Programme Expenditure
UK Statistics Family,Office for National Statistics,05/11/2020,Exp - Purchase Of Goods/Services - Contractors,Digital Delivery,Malikshaw Interim & Executive,190695,"17,189.40",Information Management Services,SME,Programme Expenditure
UK Statistics Family,Office for National Statistics,05/11/2020,Marketing & Media,Stakeholder Engagement And Comms,Manning Gottlieb,190697,"29,433.42",Marketing Services,Large,Programme Expenditure
UK Statistics Family,Office for National Statistics,06/11/2020,Exp - Purchase Of Goods/Services - Incentive Payments,Survey Management,P & Mm Ltd,190711,"6,688.60",Survey Response Incentive Vouchers,Large,Programme Expenditure
UK Statistics Family,Office for National Statistics,06/11/2020,Exp - Purchase Of Goods/Services - Incentive Payments,Social Survey Transformation Newport,P & Mm Ltd,190711,"188,441.60",Survey Response Incentive Vouchers,Large,Programme Expenditure
UK Statistics Family,Office for National Statistics,06/11/2020,Exp - Purchase Of Goods/Services - Incentive Payments,Social Survey Transformation Newport,P & Mm Ltd,190711,"60,299.60",Survey Response Incentive Vouchers,Large,Programme Expenditure
UK Statistics Family,Office for National Statistics,06/11/2020,Exp - Purchase Of Goods/Services - Incentive Payments,Survey Management,P & Mm Ltd,190711,"39,963.20",Survey Response Incentive Vouchers,Large,Programme Expenditure
UK Statistics Family,Office for National Statistics,06/11/2020,Exp - Purchase Of Goods/Services - Incentive Payments,Survey Management,P & Mm Ltd,190711,"5,066.80",Survey Response Incentive Vouchers,Large,Programme Expenditure
UK Statistics Family,Office for National Statistics,06/11/2020,Exp - Purchase Of Goods/Services - Incentive Payments,Survey Management,P & Mm Ltd,190711,"162,675.00",Survey Response Incentive Vouchers,Large,Programme Expenditure
UK Statistics Family,Office for National Statistics,06/11/2020,Exp - Purchase Of Goods/Services - Incentive Payments,Survey Management,P & Mm Ltd,190711,"4,960.80",Survey Response Incentive Vouchers,Large,Programme Expenditure
UK Statistics Family,Office for National Statistics,06/11/2020,Exp - Short-Term Contract & Agency Staff - Full Cost,Business Change Support,Concept Information Technology Ltd T/A Concept Resourcing,190712,"7,780.12",Information Management Services,Large,Programme Expenditure
UK Statistics Family,Office for National Statistics,06/11/2020,Exp - Short-Term Contract & Agency Staff - Full Cost,Business Change Support,Concept Information Technology Ltd T/A Concept Resourcing,190712,"13,701.11",Information Management Services,Large,Programme Expenditure
UK Statistics Family,Office for National Statistics,06/11/2020,Exp - Short-Term Contract & Agency Staff - Full Cost,Business Change Support,Concept Information Technology Ltd T/A Concept Resourcing,190712,"8,059.48",Information Management Services,Large,Programme Expenditure
UK Statistics Family,Office for National Statistics,06/11/2020,Exp - Short-Term Contract & Agency Staff - Full Cost,Business Change Support,Concept Information Technology Ltd T/A Concept Resourcing,190712,"10,024.19",Information Management Services,Large,Programme Expenditure
UK Statistics Family,Office for National Statistics,06/11/2020,Exp - Short-Term Contract & Agency Staff - Full Cost,Business Change Support,Concept Information Technology Ltd T/A Concept Resourcing,190712,"3,929.00",Information Management Services,Large,Programme Expenditure
UK Statistics Family,Office for National Statistics,06/11/2020,Exp - Short-Term Contract & Agency Staff - Full Cost,Business Change Support,Concept Information Technology Ltd T/A Concept Resourcing,190712,"7,857.99",Information Management Services,Large,Programme Expenditure
UK Statistics Family,Office for National Statistics,06/11/2020,Exp - Short-Term Contract & Agency Staff - Full Cost,International Trade And Transactions,Concept Information Technology Ltd T/A Concept Resourcing,190712,"1,007.44",Information Management Services,Large,Programme Expenditure
UK Statistics Family,Office for National Statistics,06/11/2020,Exp - Short-Term Contract & Agency Staff - Full Cost,International Trade And Transactions,Concept Information Technology Ltd T/A Concept Resourcing,190712,"11,050.76",Information Management Services,Large,Programme Expenditure
UK Statistics Family,Office for National Statistics,06/11/2020,Exp - Short-Term Contract & Agency Staff - Full Cost,International Trade And Transactions,Concept Information Technology Ltd T/A Concept Resourcing,190712,"4,029.74",Information Management Services,Large,Programme Expenditure
UK Statistics Family,Office for National Statistics,06/11/2020,Exp - Short-Term Contract & Agency Staff - Full Cost,International Trade And Transactions,Concept Information Technology Ltd T/A Concept Resourcing,190712,"4,030.85",Information Management Services,Large,Programme Expenditure
UK Statistics Family,Office for National Statistics,06/11/2020,Exp - Short-Term Contract & Agency Staff - Full Cost,Business Statistics Transformation,Concept Information Technology Ltd T/A Concept Resourcing,190712,"8,419.35",Information Management Services,Large,Programme Expenditure
UK Statistics Family,Office for National Statistics,06/11/2020,Exp - Short-Term Contract & Agency Staff - Full Cost,Business Statistics Transformation,Concept Information Technology Ltd T/A Concept Resourcing,190712,785.44,Information Management Services,Large,Programme Expenditure
UK Statistics Family,Office for National Statistics,06/11/2020,Exp - Short-Term Contract & Agency Staff - Full Cost,Interviewer Management TU,Concept Information Technology Ltd T/A Concept Resourcing,190712,"6,135.86",Information Management Services,Large,Programme Expenditure
UK Statistics Family,Office for National Statistics,06/11/2020,Other Goods And Services,Interviewer Management TU,Concept Information Technology Ltd T/A Concept Resourcing,190712,591.41,Information Management Services,Large,Programme Expenditure
UK Statistics Family,Office for National Statistics,06/11/2020,Exp - Purchase Of Goods/Services - IT Contractual Services,Cloud Architecture,Computacenter (Uk) Limited,190717,"1,920,158.10",Information Management Services,Large,Programme Expenditure
UK Statistics Family,Office for National Statistics,06/11/2020,Exp - Purchase Of Goods/Services - Contractors,Programme Support,Parity Resources Limited,190723,"32,096.02",Information Management Services,Large,Programme Expenditure
UK Statistics Family,Office for National Statistics,06/11/2020,Exp - Purchase Of Goods/Services - Contractors,Covid Infection Survey,Parity Resources Limited,190723,"6,000.00",Information Management Services,Large,Programme Expenditure
UK Statistics Family,Office for National Statistics,06/11/2020,Exp - Purchase Of Goods/Services - Contractors,Business Architecture,LA FOSSE ASSOCIATES LIMITED,190724,"13,065.00",Information Management Services,Large,Programme Expenditure
UK Statistics Family,Office for National Statistics,06/11/2020,Exp - Purchase Of Goods/Services - Contractors,Consultancy Management,LA FOSSE ASSOCIATES LIMITED,190724,"3,150.00",Information Management Services,Large,Programme Expenditure
UK Statistics Family,Office for National Statistics,06/11/2020,Exp - Purchase Of Goods/Services - Contractors,Consultancy Management,LA FOSSE ASSOCIATES LIMITED,190724,"3,300.00",Information Management Services,Large,Programme Expenditure
UK Statistics Family,Office for National Statistics,06/11/2020,Exp - Purchase Of Goods/Services - Contractors,Programme Support,LA FOSSE ASSOCIATES LIMITED,190724,"24,000.00",Information Management Services,Large,Programme Expenditure
UK Statistics Family,Office for National Statistics,06/11/2020,Exp - Purchase Of Goods/Services - Contractors,Data Architecture,LA FOSSE ASSOCIATES LIMITED,190724,"4,050.00",Information Management Services,Large,Programme Expenditure
UK Statistics Family,Office for National Statistics,06/11/2020,Exp - Purchase Of Goods/Services - Contractors,Tech Delivery Legacy Sp,LA FOSSE ASSOCIATES LIMITED,190724,"7,200.00",Information Management Services,Large,Programme Expenditure
UK Statistics Family,Office for National Statistics,06/11/2020,Exp - Purchase Of Goods/Services - Contractors,Tech Delivery Legacy Sp,LA FOSSE ASSOCIATES LIMITED,190724,"10,800.00",Information Management Services,Large,Programme Expenditure
UK Statistics Family,Office for National Statistics,06/11/2020,Exp - Purchase Of Goods/Services - Contractors,Tech Delivery Legacy Sp,LA FOSSE ASSOCIATES LIMITED,190724,"3,600.00",Information Management Services,Large,Programme Expenditure
UK Statistics Family,Office for National Statistics,09/11/2020,FM Contract Payments,FM Payments,Vinci Construction UK Limited,190825,"44,159.79",Facilities Mangement Services,Large,Programme Expenditure
UK Statistics Family,Office for National Statistics,09/11/2020,Telecoms,IT Operations,Bt Global Services,190827,"49,780.39",Telephony Charges,Large,Programme Expenditure
UK Statistics Family,Office for National Statistics,09/11/2020,Exp - Purchase Of Goods/Services - Contractors,CDIO UNGP,Certes Computing Ltd,190830,"14,795.62",Information Management Services,SME,Programme Expenditure
UK Statistics Family,Office for National Statistics,09/11/2020,Exp - Purchase Of Goods/Services - Contractors,Tech Delivery Legacy Sp,Certes Computing Ltd,190830,"34,556.54",Information Management Services,SME,Programme Expenditure
UK Statistics Family,Office for National Statistics,09/11/2020,Exp - Purchase Of Goods/Services - Contractors,Tech Delivery Legacy Sp,Certes Computing Ltd,190830,"27,797.94",Information Management Services,SME,Programme Expenditure
UK Statistics Family,Office for National Statistics,09/11/2020,Exp - Purchase Of Goods/Services - Contractors,Tech Delivery Data As A Platform,Certes Computing Ltd,190830,"2,017.58",Information Management Services,SME,Programme Expenditure
UK Statistics Family,Office for National Statistics,09/11/2020,Exp - Purchase Of Goods/Services - Contractors,Tech Delivery Data As A Platform,Certes Computing Ltd,190830,"13,678.63",Information Management Services,SME,Programme Expenditure
UK Statistics Family,Office for National Statistics,09/11/2020,Exp - Purchase Of Goods/Services - Contractors,IT Applications,Certes Computing Ltd,190830,"17,613.90",Information Management Services,SME,Programme Expenditure
UK Statistics Family,Office for National Statistics,09/11/2020,Exp - Purchase Of Goods/Services - Contractors,Digital Delivery,Certes Computing Ltd,190830,"15,211.50",Information Management Services,SME,Programme Expenditure
UK Statistics Family,Office for National Statistics,09/11/2020,Exp - Purchase Of Goods/Services - Contractors,Digital Delivery,Certes Computing Ltd,190830,"17,261.63",Information Management Services,SME,Programme Expenditure
UK Statistics Family,Office for National Statistics,09/11/2020,Exp - Purchase Of Goods/Services - Contractors,Digital Delivery,Certes Computing Ltd,190830,"17,934.00",Information Management Services,SME,Programme Expenditure
UK Statistics Family,Office for National Statistics,09/11/2020,Exp - Purchase Of Goods/Services - Contractors,Digital Delivery,Certes Computing Ltd,190830,"17,613.90",Information Management Services,SME,Programme Expenditure
UK Statistics Family,Office for National Statistics,09/11/2020,Exp - Purchase Of Goods/Services - Contractors,Portfolio Delivery,La International,190831,"3,366.90",Information Management Services,SME,Programme Expenditure
UK Statistics Family,Office for National Statistics,09/11/2020,Exp - Purchase Of Goods/Services - Contractors,Data Architecture,La International,190831,"6,760.10",Information Management Services,SME,Programme Expenditure
UK Statistics Family,Office for National Statistics,09/11/2020,Exp - Purchase Of Goods/Services - Contractors,Data Architecture,La International,190831,"3,524.22",Information Management Services,SME,Programme Expenditure
UK Statistics Family,Office for National Statistics,09/11/2020,Exp - Purchase Of Goods/Services - Contractors,Data Architecture,La International,190831,"18,005.64",Information Management Services,SME,Programme Expenditure
UK Statistics Family,Office for National Statistics,09/11/2020,Exp - Purchase Of Goods/Services - Contractors,Tech Delivery SRS,La International,190831,"3,588.30",Information Management Services,SME,Programme Expenditure
UK Statistics Family,Office for National Statistics,09/11/2020,Exp - Purchase Of Goods/Services - Contractors,Tech Delivery Legacy Sp,La International,190831,"22,427.10",Information Management Services,SME,Programme Expenditure
UK Statistics Family,Office for National Statistics,09/11/2020,Exp - Purchase Of Goods/Services - Contractors,Tech Delivery Legacy Sp,La International,190831,"3,524.22",Information Management Services,SME,Programme Expenditure
UK Statistics Family,Office for National Statistics,09/11/2020,Exp - Purchase Of Goods/Services - Contractors,Tech Delivery Data As A Platform,La International,190831,"17,941.50",Information Management Services,SME,Programme Expenditure
UK Statistics Family,Office for National Statistics,09/11/2020,Exp - Purchase Of Goods/Services - Contractors,IT Applications,La International,190831,"8,663.46",Information Management Services,SME,Programme Expenditure
UK Statistics Family,Office for National Statistics,09/11/2020,Exp - Purchase Of Goods/Services - Contractors,Digital Delivery,La International,190831,"17,941.68",Information Management Services,SME,Programme Expenditure
UK Statistics Family,Office for National Statistics,09/11/2020,Exp - Purchase Of Goods/Services - Contractors,Digital Delivery,La International,190831,"16,406.52",Information Management Services,SME,Programme Expenditure
UK Statistics Family,Office for National Statistics,09/11/2020,Exp - Purchase Of Goods/Services - Contractors,Digital Delivery,La International,190831,"19,223.10",Information Management Services,SME,Programme Expenditure
UK Statistics Family,Office for National Statistics,09/11/2020,Exp - Purchase Of Goods/Services - Contractors,Digital Delivery,La International,190831,"14,353.20",Information Management Services,SME,Programme Expenditure
UK Statistics Family,Office for National Statistics,09/11/2020,Exp - Purchase Of Goods/Services - Contractors,Digital Delivery,La International,190831,"35,883.00",Information Management Services,SME,Programme Expenditure
UK Statistics Family,Office for National Statistics,09/11/2020,Exp - Purchase Of Goods/Services - Training & Development - Seminar & Conference Fees,Learning And Capability,Cabinet Office,190835,"40,662.00",Training and Educational Services,Large,Programme Expenditure
UK Statistics Family,Office for National Statistics,09/11/2020,Exp - Purchase Of Goods/Services - Contractors,Strategy And Architecture,Talent International,190840,"17,970.00",Information Management Services,SME,Programme Expenditure
UK Statistics Family,Office for National Statistics,09/11/2020,Exp - Purchase Of Goods/Services - Contractors,Tech Delivery Data As A Platform,Talent International,190840,"17,999.70",Information Management Services,SME,Programme Expenditure
UK Statistics Family,Office for National Statistics,09/11/2020,Exp - Purchase Of Goods/Services - Contractors,Digital Delivery,Talent International,190840,"15,120.00",Information Management Services,SME,Programme Expenditure
UK Statistics Family,Office for National Statistics,09/11/2020,Other Goods And Services,Overseas Development,"Foreign, Commonwealth & Development Office",190842,"73,479.46",Subscription and Support Services,Large,Programme Expenditure
UK Statistics Family,Office for National Statistics,09/11/2020,Exp - Purchase Of Goods/Services - IT Contractual Services,Digital Delivery,Equal Experts UK Ltd,190843,"136,152.00",Information Management Services,Large,Programme Expenditure
UK Statistics Family,Office for National Statistics,10/11/2020,Exp - Purchase Of Goods/Services - Incentive Payments,Survey Management,Park Retail Ltd,190912,"40,498.48",Survey Response Incentive Vouchers,Large,Programme Expenditure
UK Statistics Family,Office for National Statistics,10/11/2020,Exp - Short-Term Contract & Agency Staff - Full Cost,Data Architecture,Concept Information Technology Ltd T/A Concept Resourcing,190914,"5,899.89",Information Management Services,Large,Programme Expenditure
UK Statistics Family,Office for National Statistics,10/11/2020,Exp - Purchase Of Goods/Services - Contractors,Data Architecture,Concept Information Technology Ltd T/A Concept Resourcing,190914,"21,360.00",Information Management Services,Large,Programme Expenditure
UK Statistics Family,Office for National Statistics,10/11/2020,Capitalised Consultancy  IT,Finance,Phoenix Software Ltd,190916,"14,280.00",Software Licenses,SME,Programme Expenditure
UK Statistics Family,Office for National Statistics,10/11/2020,End User Software And Hardware,IT Operations,Phoenix Software Ltd,190916,"412,736.26",Software Licenses,SME,Programme Expenditure
UK Statistics Family,Office for National Statistics,10/11/2020,Exp - Purchase Of Goods/Services - Contractors,Security Advisory,Certes Computing Ltd,190920,"22,097.39",Information Management Services,SME,Programme Expenditure
UK Statistics Family,Office for National Statistics,10/11/2020,Exp - Purchase Of Goods/Services - Contractors,Data Architecture,Certes Computing Ltd,190920,"34,916.51",Information Management Services,SME,Programme Expenditure
UK Statistics Family,Office for National Statistics,10/11/2020,Exp - Purchase Of Goods/Services - Contractors,Data Architecture,Certes Computing Ltd,190920,"20,175.90",Information Management Services,SME,Programme Expenditure
UK Statistics Family,Office for National Statistics,10/11/2020,Exp - Purchase Of Goods/Services - Contractors,Strategy And Architecture,Certes Computing Ltd,190920,"38,430.00",Information Management Services,SME,Programme Expenditure
UK Statistics Family,Office for National Statistics,10/11/2020,Exp - Purchase Of Goods/Services - Contractors,Tech Delivery Legacy Sp,Certes Computing Ltd,190920,"2,017.58",Information Management Services,SME,Programme Expenditure
UK Statistics Family,Office for National Statistics,10/11/2020,Exp - Purchase Of Goods/Services - Contractors,Tech Delivery Legacy Sp,Certes Computing Ltd,190920,"22,417.50",Information Management Services,SME,Programme Expenditure
UK Statistics Family,Office for National Statistics,10/11/2020,Exp - Purchase Of Goods/Services - Contractors,Tech Delivery Legacy Sp,Certes Computing Ltd,190920,14795.62,Information Management Services,SME,Programme Expenditure
UK Statistics Family,Office for National Statistics,10/11/2020,Exp - Purchase Of Goods/Services - Contractors,Tech Delivery Data As A Platform,Certes Computing Ltd,190920,"12,009.42",Information Management Services,SME,Programme Expenditure
UK Statistics Family,Office for National Statistics,10/11/2020,Exp - Purchase Of Goods/Services - Contractors,Digital Delivery,Certes Computing Ltd,190920,"13,678.63",Information Management Services,SME,Programme Expenditure
UK Statistics Family,Office for National Statistics,10/11/2020,Stationery,Lodgecard,Royal Bank of Scotland,190921,"6,465.64",Multiple Procurement Card Purchases  - Stationery ,Large,Programme Expenditure
UK Statistics Family,Office for National Statistics,10/11/2020,Other Goods And Services,GPC,Royal Bank of Scotland,190921,"41,535.51",Multiple Procurement Card Purchases - other goods/services  ,Large,Programme Expenditure
UK Statistics Family,Office for National Statistics,10/11/2020,Travel And Subsistence,Car Hire,Royal Bank of Scotland,190921,"3,245.89",Multiple Procurement Card Purchases - Vehicle Hire  ,Large,Programme Expenditure
UK Statistics Family,Office for National Statistics,10/11/2020,EXP - PURCHASE OF GOODS/SERVICES -  NON IT CONTRACTUAL PAYMENTS,Data Collection Service,Good Things Foundation,190927,"131,615.00",Census Assisted Digital Services,SME,Programme Expenditure
UK Statistics Family,Office for National Statistics,10/11/2020,Exp - Purchase Of Goods/Services - IT Contractual Services,Office Of Chief Data And Information,Akamai Technologies Limited,190932,"36,200.00",Information Management Services,SME,Programme Expenditure
UK Statistics Family,Office for National Statistics,11/11/2020,End User Software And Hardware,IT Operations,Phoenix Software Ltd,190941,"2,374,771.10",Software Licenses,SME,Programme Expenditure
UK Statistics Family,Office for National Statistics,11/11/2020,Hosting,IT Operations,Amazon Web Services Inc,190950,"91,563.01",Information Management Services,Large,Programme Expenditure
UK Statistics Family,Office for National Statistics,11/11/2020,EXP - PURCHASE OF GOODS/SERVICES -  NON IT CONTRACTUAL PAYMENTS,Covid Infection Survey,HH Associates Ltd,190951,"47,159.47",Print and Post Services,SME,Programme Expenditure
UK Statistics Family,Office for National Statistics,11/11/2020,Exp - Purchase Of Goods/Services - Contractors,Business Architecture,Parity Resources Limited,190952,"2,878.76",Information Management Services,Large,Programme Expenditure
UK Statistics Family,Office for National Statistics,11/11/2020,Exp - Purchase Of Goods/Services - Contractors,Programme Delivery,Parity Resources Limited,190952,"16,917.12",Information Management Services,Large,Programme Expenditure
UK Statistics Family,Office for National Statistics,11/11/2020,Exp - Purchase Of Goods/Services - Contractors,Consultancy Management,Parity Resources Limited,190952,13050,Information Management Services,Large,Programme Expenditure
UK Statistics Family,Office for National Statistics,11/11/2020,Exp - Purchase Of Goods/Services - Contractors,Programme Support,Parity Resources Limited,190952,"2,993.80",Information Management Services,Large,Programme Expenditure
UK Statistics Family,Office for National Statistics,11/11/2020,Exp - Purchase Of Goods/Services - Contractors,Covid Infection Survey,Parity Resources Limited,190952,"2,400.00",Information Management Services,Large,Programme Expenditure
UK Statistics Family,Office for National Statistics,11/11/2020,Exp - Short-Term Contract & Agency Staff - Full Cost,Strategy And Engagement,Parity Resources Limited,190952,"1,001.22",Information Management Services,Large,Programme Expenditure
UK Statistics Family,Office for National Statistics,11/11/2020,Exp - Purchase Of Goods/Services - Contractors,Commercial Services,Parity Resources Limited,190952,"35,211.96",Information Management Services,Large,Programme Expenditure
UK Statistics Family,Office for National Statistics,11/11/2020,Exp - Purchase Of Goods/Services - Contractors,Security Advisory,Parity Resources Limited,190952,"17,404.13",Information Management Services,Large,Programme Expenditure
UK Statistics Family,Office for National Statistics,11/11/2020,Exp - Short-Term Contract & Agency Staff - Full Cost,Data Architecture,Parity Resources Limited,190952,"1,465.20",Information Management Services,Large,Programme Expenditure
UK Statistics Family,Office for National Statistics,11/11/2020,Exp - Purchase Of Goods/Services - Contractors,Data Architecture,Parity Resources Limited,190952,"7,005.06",Information Management Services,Large,Programme Expenditure
UK Statistics Family,Office for National Statistics,11/11/2020,Exp - Purchase Of Goods/Services - Contractors,IT Applications,Parity Resources Limited,190952,"15,379.32",Information Management Services,Large,Programme Expenditure
UK Statistics Family,Office for National Statistics,11/11/2020,Exp - Short-Term Contract & Agency Staff - Full Cost,Digital Delivery,Parity Resources Limited,190952,637.20,Information Management Services,Large,Programme Expenditure
UK Statistics Family,Office for National Statistics,11/11/2020,Exp - Purchase Of Goods/Services - Contractors,Digital Delivery,Parity Resources Limited,190952,"35,884.80",Information Management Services,Large,Programme Expenditure
UK Statistics Family,Office for National Statistics,11/11/2020,Exp - Purchase Of Goods/Services - Contractors,Digital Delivery,Parity Resources Limited,190952,"11,982.96",Information Management Services,Large,Programme Expenditure
UK Statistics Family,Office for National Statistics,11/11/2020,Exp - Short-Term Contract & Agency Staff - Full Cost,Social Survey Transformation Titchfield,Parity Resources Limited,190952,785.88,Information Management Services,Large,Programme Expenditure
UK Statistics Family,Office for National Statistics,11/11/2020,Exp - Purchase Of Goods/Services - Contractors,Business Architecture,Talent International,190957,"19,090.00",Information Management Services,SME,Programme Expenditure
UK Statistics Family,Office for National Statistics,11/11/2020,Exp - Purchase Of Goods/Services - Contractors,MDR Management,Talent International,190957,"16,250.00",Information Management Services,SME,Programme Expenditure
UK Statistics Family,Office for National Statistics,11/11/2020,Exp - Purchase Of Goods/Services - Contractors,Data Architecture,Talent International,190957,60852,Information Management Services,SME,Programme Expenditure
UK Statistics Family,Office for National Statistics,11/11/2020,Exp - Purchase Of Goods/Services - Contractors,Data Architecture,Talent International,190957,"12,060.00",Information Management Services,SME,Programme Expenditure
UK Statistics Family,Office for National Statistics,11/11/2020,Exp - Purchase Of Goods/Services - Contractors,Senior Management Team Design,SmartSourcing Ltd,190958,"18,000.00",Information Management Services,SME,Programme Expenditure
UK Statistics Family,Office for National Statistics,11/11/2020,Exp - Purchase Of Goods/Services - Contractors,Data Architecture,SmartSourcing Ltd,190958,"49,883.51",Information Management Services,SME,Programme Expenditure
UK Statistics Family,Office for National Statistics,12/11/2020,EXP - PURCHASE OF GOODS/SERVICES -  NON IT CONTRACTUAL PAYMENTS,Data Collection Service,Serco Ltd,191106,"32,140.57",Census Contact Centre,Large,Programme Expenditure
UK Statistics Family,Office for National Statistics,12/11/2020,Exp - Purchase Of Goods/Services - IT Contractual Services,Tech Delivery Legacy Sp,CTS (Cloud Technology Solutions Ltd),191107,"29,424.60",DST Infrastructure Preparation,Large,Programme Expenditure
UK Statistics Family,Office for National Statistics,12/11/2020,Surveys,Prices Division,Kantar UK Ltd,191108,"205,897.00",Statistical Services,Large,Programme Expenditure
UK Statistics Family,Office for National Statistics,12/11/2020,Exp - Purchase Of Goods/Services - Contractors,Data Architecture,Talent International,191110,"14,520.00",Information Management Services,SME,Programme Expenditure
UK Statistics Family,Office for National Statistics,12/11/2020,Exp - Purchase Of Goods/Services - Contractors,Tech Delivery Legacy Sp,Talent International,191110,"17,999.70",Information Management Services,SME,Programme Expenditure
UK Statistics Family,Office for National Statistics,12/11/2020,Exp - Purchase Of Goods/Services - Contractors,Business Architecture,Parity Resources Limited,191112,"13,496.10",Information Management Services,Large,Programme Expenditure
UK Statistics Family,Office for National Statistics,12/11/2020,Exp - Purchase Of Goods/Services - Contractors,Programme Delivery,Parity Resources Limited,191112,"13,860.00",Information Management Services,Large,Programme Expenditure
UK Statistics Family,Office for National Statistics,12/11/2020,Exp - Purchase Of Goods/Services - Contractors,Programme Delivery,Parity Resources Limited,191112,"17,622.00",Information Management Services,Large,Programme Expenditure
UK Statistics Family,Office for National Statistics,12/11/2020,Exp - Short-Term Contract & Agency Staff - Full Cost,International Trade And Transactions,Parity Resources Limited,191112,"4,018.42",Information Management Services,Large,Programme Expenditure
UK Statistics Family,Office for National Statistics,12/11/2020,Exp - Purchase Of Goods/Services - Contractors,Finance,Parity Resources Limited,191112,"3,600.00",Information Management Services,Large,Programme Expenditure
UK Statistics Family,Office for National Statistics,12/11/2020,Exp - Purchase Of Goods/Services - Contractors,IT Applications,Parity Resources Limited,191112,"17,942.40",Information Management Services,Large,Programme Expenditure
UK Statistics Family,Office for National Statistics,12/11/2020,Exp - Purchase Of Goods/Services - Contractors,Digital Delivery,Parity Resources Limited,191112,"12,200.83",Information Management Services,Large,Programme Expenditure
UK Statistics Family,Office for National Statistics,12/11/2020,Exp - Purchase Of Goods/Services - IT Contractual Services,Digital Delivery,Parity Resources Limited,191112,"11,534.40",Information Management Services,Large,Programme Expenditure
UK Statistics Family,Office for National Statistics,13/11/2020,Major Works Over 25K,Property Titchfield,Vinci Construction UK Limited,191136,"27,600.00",Facilities Mangement Services,Large,Programme Expenditure
UK Statistics Family,Office for National Statistics,13/11/2020,Major Works Over 25K,Property Christchurch,Vinci Construction UK Limited,191136,"10,500.00",Facilities Mangement Services,Large,Programme Expenditure
UK Statistics Family,Office for National Statistics,13/11/2020,Exp - Purchase Of Goods/Services - Contractors,Testing,Certes Computing Ltd,191142,"3,497.11",Information Management Services,SME,Programme Expenditure
UK Statistics Family,Office for National Statistics,13/11/2020,Exp - Purchase Of Goods/Services - Contractors,Testing,Certes Computing Ltd,191142,"35,381.09",Information Management Services,SME,Programme Expenditure
UK Statistics Family,Office for National Statistics,13/11/2020,Exp - Purchase Of Goods/Services - Contractors,Testing,Certes Computing Ltd,191142,"1,537.20",Information Management Services,SME,Programme Expenditure
UK Statistics Family,Office for National Statistics,13/11/2020,Exp - Purchase Of Goods/Services - Contractors,Testing,La International,191143,"26,848.18",Information Management Services,SME,Programme Expenditure
UK Statistics Family,Office for National Statistics,13/11/2020,Exp - Purchase Of Goods/Services - Contractors,Testing,La International,191143,"1,537.85",Information Management Services,SME,Programme Expenditure
UK Statistics Family,Office for National Statistics,13/11/2020,Exp - Purchase Of Goods/Services - Contractors,Testing,Malikshaw Interim & Executive,191149,"69,960.00",Information Management Services,SME,Programme Expenditure
UK Statistics Family,Office for National Statistics,13/11/2020,Exp - Purchase Of Goods/Services - Contractors,Testing,Malikshaw Interim & Executive,191149,"9,540.00",Information Management Services,SME,Programme Expenditure
UK Statistics Family,Office for National Statistics,13/11/2020,Exp - Purchase Of Goods/Services - Contractors,Digital Delivery,Malikshaw Interim & Executive,191149,"15,840.00",Information Management Services,SME,Programme Expenditure
UK Statistics Family,Office for National Statistics,13/11/2020,Exp - Purchase Of Goods/Services - Contractors,Digital Delivery,Malikshaw Interim & Executive,191149,"15,840.00",Information Management Services,SME,Programme Expenditure
UK Statistics Family,Office for National Statistics,13/11/2020,Exp - Purchase Of Goods/Services - Contractors,Testing,Parity Resources Limited,191152,"2,210.76",Information Management Services,Large,Programme Expenditure
UK Statistics Family,Office for National Statistics,13/11/2020,Exp - Purchase Of Goods/Services - Contractors,Testing,Parity Resources Limited,191152,"32,052.24",Information Management Services,Large,Programme Expenditure
UK Statistics Family,Office for National Statistics,13/11/2020,Exp - Purchase Of Goods/Services - Contractors,Testing,Parity Resources Limited,191152,"2,160.00",Information Management Services,Large,Programme Expenditure
UK Statistics Family,Office for National Statistics,13/11/2020,Exp - Purchase Of Goods/Services - Contractors,Business Architecture,LA FOSSE ASSOCIATES LIMITED,191153,"13,145.00",Information Management Services,Large,Programme Expenditure
UK Statistics Family,Office for National Statistics,13/11/2020,Exp - Purchase Of Goods/Services - Contractors,Consultancy Management,LA FOSSE ASSOCIATES LIMITED,191153,"24,630.00",Information Management Services,Large,Programme Expenditure
UK Statistics Family,Office for National Statistics,13/11/2020,Exp - Purchase Of Goods/Services - Contractors,Consultancy Management,LA FOSSE ASSOCIATES LIMITED,191153,"5,500.00",Information Management Services,Large,Programme Expenditure
UK Statistics Family,Office for National Statistics,13/11/2020,Exp - Purchase Of Goods/Services - Contractors,Digital Delivery,LA FOSSE ASSOCIATES LIMITED,191153,"3,599.94",Information Management Services,Large,Programme Expenditure
UK Statistics Family,Office for National Statistics,13/11/2020,Exp - Purchase Of Goods/Services - Contractors,Business Statistics Transformation,LA FOSSE ASSOCIATES LIMITED,191153,"5,940.00",Information Management Services,Large,Programme Expenditure
UK Statistics Family,Office for National Statistics,13/11/2020,Telecoms,Census CCS Data Collection,Cdw Limited,191154,"2,988.00",Software Licenses,Large,Programme Expenditure
UK Statistics Family,Office for National Statistics,13/11/2020,Telecoms,IT Operations,Cdw Limited,191154,"34,042.80",Software Licenses,Large,Programme Expenditure
UK Statistics Family,Office for National Statistics,13/11/2020,EXP - PURCHASE OF GOODS/SERVICES -  NON IT CONTRACTUAL PAYMENTS,Data Collection Service,M&C Saatchi UK Ltd,191158,"55,034.35",Marketing Services,Large,Programme Expenditure
UK Statistics Family,Office for National Statistics,16/11/2020,Exp - Purchase Of Goods And Services Consultants,Productivity Research And Professional Development,Niesr,191321,"343,976.40",Statistical Services,SME,Programme Expenditure
UK Statistics Family,Office for National Statistics,16/11/2020,Exp - Purchase Of Goods/Services - Contractors,Digital Delivery,Certes Computing Ltd,191324,"32,151.90",Information Management Services,SME,Programme Expenditure
UK Statistics Family,Office for National Statistics,16/11/2020,Exp - Purchase Of Goods/Services - Contractors,Testing,La International,191325,"19,158.94",Information Management Services,SME,Programme Expenditure
UK Statistics Family,Office for National Statistics,16/11/2020,Exp - Purchase Of Goods/Services - Contractors,Data Architecture,La International,191325,"7,112.52",Information Management Services,SME,Programme Expenditure
UK Statistics Family,Office for National Statistics,16/11/2020,Exp - Purchase Of Goods/Services - Contractors,Data Architecture,La International,191325,"3,171.80",Information Management Services,SME,Programme Expenditure
UK Statistics Family,Office for National Statistics,16/11/2020,Exp - Purchase Of Goods/Services - Contractors,Data Architecture,La International,191325,"14,161.02",Information Management Services,SME,Programme Expenditure
UK Statistics Family,Office for National Statistics,16/11/2020,Exp - Purchase Of Goods/Services - Contractors,Tech Delivery Data As A Platform,La International,191325,"14,737.85",Information Management Services,SME,Programme Expenditure
UK Statistics Family,Office for National Statistics,16/11/2020,Exp - Purchase Of Goods/Services - Contractors,IT Applications,La International,191325,"11,867.34",Information Management Services,SME,Programme Expenditure
UK Statistics Family,Office for National Statistics,16/11/2020,"ICT Outsourcing, Maintenance And Support",IT Operations,Bloom Procurement Services Ltd,191332,"369,890.32",Consultancy,Large,Programme Expenditure
UK Statistics Family,Office for National Statistics,16/11/2020,Other Professional Services,People Solutions,Government Legal Department,191333,"25,711.86",Legal Services,Large,Programme Expenditure
UK Statistics Family,Office for National Statistics,16/11/2020,Exp - Purchase Of Goods/Services - Contractors,Consultancy Management,Talent International,191334,"12,077.00",Information Management Services,SME,Programme Expenditure
UK Statistics Family,Office for National Statistics,16/11/2020,Exp - Purchase Of Goods/Services - Contractors,Programme Support,Talent International,191334,"12,925.00",Information Management Services,SME,Programme Expenditure
UK Statistics Family,Office for National Statistics,16/11/2020,Exp - Short-Term Contract & Agency Staff - Full Cost,Data Architecture,Talent International,191334,737.48,Information Management Services,SME,Programme Expenditure
UK Statistics Family,Office for National Statistics,16/11/2020,Hosting,IT Operations,CTS (Cloud Technology Solutions Ltd),191336,"34,829.39",DST Infrastructure Preparation,Large,Programme Expenditure
UK Statistics Family,Office for National Statistics,17/11/2020,Exp - Purchase Of Goods/Services - IT Contractual Services,Strategy And Architecture,E Synergy Solutions,191359,"15,840.00",Information Management Services,SME,Programme Expenditure
UK Statistics Family,Office for National Statistics,17/11/2020,Exp - Purchase Of Goods/Services - IT Contractual Services,Tech Delivery Next Gen IT And Infrastructure,E Synergy Solutions,191359,"31,680.00",Information Management Services,SME,Programme Expenditure
UK Statistics Family,Office for National Statistics,17/11/2020,Exp - Purchase Of Goods/Services - IT Contractual Services,IT Applications,E Synergy Solutions,191359,"97,938.00",Information Management Services,SME,Programme Expenditure
UK Statistics Family,Office for National Statistics,17/11/2020,Exp - Purchase Of Goods/Services - Contractors,IT Operations,E Synergy Solutions,191359,330.00,Information Management Services,SME,Programme Expenditure
UK Statistics Family,Office for National Statistics,17/11/2020,Exp - Purchase Of Goods/Services - IT Contractual Services,IT Operations,E Synergy Solutions,191359,"31,920.00",Information Management Services,SME,Programme Expenditure
UK Statistics Family,Office for National Statistics,17/11/2020,Exp - Purchase Of Goods/Services - IT Contractual Services,Digital Delivery,E Synergy Solutions,191359,"15,180.00",Information Management Services,SME,Programme Expenditure
UK Statistics Family,Office for National Statistics,17/11/2020,End User Software And Hardware,IT Operations,Stone Computers,191363,"54,000.00",Computers and Peripherals ,Large,Programme Expenditure
UK Statistics Family,Office for National Statistics,17/11/2020,Other Goods And Services,Social Survey Transformation Newport,APS Group,191371,"382,451.62",Mailing Services,Large,Programme Expenditure
UK Statistics Family,Office for National Statistics,17/11/2020,Marketing & Media,Social Surveys Division,APS Group,191371,"-6,045.65",Mailing Services,Large,Programme Expenditure
UK Statistics Family,Office for National Statistics,17/11/2020,Exp - Purchase Of Goods/Services - Contractors,Business Architecture,LA FOSSE ASSOCIATES LIMITED,191383,"22,120.00",Information Management Services,Large,Programme Expenditure
UK Statistics Family,Office for National Statistics,17/11/2020,Exp - Purchase Of Goods/Services - Contractors,Consultancy Management,LA FOSSE ASSOCIATES LIMITED,191383,"3,599.94",Information Management Services,Large,Programme Expenditure
UK Statistics Family,Office for National Statistics,17/11/2020,Exp - Purchase Of Goods/Services - Contractors,Consultancy Management,LA FOSSE ASSOCIATES LIMITED,191383,"3,150.00",Information Management Services,Large,Programme Expenditure
UK Statistics Family,Office for National Statistics,17/11/2020,Exp - Purchase Of Goods/Services - Contractors,Consultancy Management,LA FOSSE ASSOCIATES LIMITED,191383,"24,120.00",Information Management Services,Large,Programme Expenditure
UK Statistics Family,Office for National Statistics,17/11/2020,Exp - Purchase Of Goods/Services - Contractors,Consultancy Management,LA FOSSE ASSOCIATES LIMITED,191383,"2,750.00",Information Management Services,Large,Programme Expenditure
UK Statistics Family,Office for National Statistics,17/11/2020,Exp - Purchase Of Goods/Services - Contractors,Data Architecture,LA FOSSE ASSOCIATES LIMITED,191383,"4,050.00",Information Management Services,Large,Programme Expenditure
UK Statistics Family,Office for National Statistics,17/11/2020,Exp - Purchase Of Goods/Services - Contractors,Business Statistics Transformation,LA FOSSE ASSOCIATES LIMITED,191383,"3,300.00",Information Management Services,Large,Programme Expenditure
UK Statistics Family,Office for National Statistics,18/11/2020,Exp - Purchase Of Goods/Services - Incentive Payments,Survey Management,Park Retail Ltd,191393,"40,684.40",Survey Response Incentive Vouchers,Large,Programme Expenditure
UK Statistics Family,Office for National Statistics,18/11/2020,Exp - Purchase Of Goods/Services - Contractors,Business Architecture Transformation And Statistical Strategy,Certes Computing Ltd,191396,"13,545.90",Information Management Services,SME,Programme Expenditure
UK Statistics Family,Office for National Statistics,18/11/2020,Exp - Purchase Of Goods/Services - Contractors,Security Advisory,Certes Computing Ltd,191396,"20,816.40",Information Management Services,SME,Programme Expenditure
UK Statistics Family,Office for National Statistics,18/11/2020,Exp - Purchase Of Goods/Services - Contractors,Security Advisory,Certes Computing Ltd,191396,"19,567.42",Information Management Services,SME,Programme Expenditure
UK Statistics Family,Office for National Statistics,18/11/2020,"ICT Outsourcing, Maintenance And Support",Senior Management Team Design,Totalmobile Ltd,191400,"131,513.40",Information Management Services,SME,Programme Expenditure
UK Statistics Family,Office for National Statistics,18/11/2020,"ICT Outsourcing, Maintenance And Support",Consultancy Management,Totalmobile Ltd,191400,"122,040.00",Information Management Services,SME,Programme Expenditure
UK Statistics Family,Office for National Statistics,18/11/2020,EXP - PURCHASE OF GOODS/SERVICES -  NON IT CONTRACTUAL PAYMENTS,Covid Infection Survey,HH Associates Ltd,191402,"47,031.80",Print and Post Services,SME,Programme Expenditure
UK Statistics Family,Office for National Statistics,18/11/2020,Exp - Purchase Of Goods/Services - Contractors,Stakeholder Engagement And Comms,Parity Resources Limited,191406,"3,929.40",Information Management Services,Large,Programme Expenditure
UK Statistics Family,Office for National Statistics,18/11/2020,Exp - Short-Term Contract & Agency Staff - Full Cost,International Trade And Transactions,Parity Resources Limited,191406,"5,006.10",Information Management Services,Large,Programme Expenditure
UK Statistics Family,Office for National Statistics,18/11/2020,Exp - Purchase Of Goods/Services - Contractors,International Trade And Transactions,Parity Resources Limited,191406,"32,588.40",Information Management Services,Large,Programme Expenditure
UK Statistics Family,Office for National Statistics,18/11/2020,Exp - Short-Term Contract & Agency Staff - Full Cost,Productivity Research And Professional Development,Parity Resources Limited,191406,"8,605.08",Information Management Services,Large,Programme Expenditure
UK Statistics Family,Office for National Statistics,18/11/2020,Exp - Short-Term Contract & Agency Staff - Full Cost,Business Architecture Transformation And Statistical Strategy,Parity Resources Limited,191406,"1,465.20",Information Management Services,Large,Programme Expenditure
UK Statistics Family,Office for National Statistics,18/11/2020,Exp - Short-Term Contract & Agency Staff - Full Cost,Recruitment ,Parity Resources Limited,191406,"2,043.28",Information Management Services,Large,Programme Expenditure
UK Statistics Family,Office for National Statistics,18/11/2020,Exp - Purchase Of Goods/Services - Contractors,Security Advisory,Parity Resources Limited,191406,"17,301.60",Information Management Services,Large,Programme Expenditure
UK Statistics Family,Office for National Statistics,18/11/2020,Exp - Purchase Of Goods/Services - Contractors,Data As A Service,Parity Resources Limited,191406,"14,533.34",Information Management Services,Large,Programme Expenditure
UK Statistics Family,Office for National Statistics,18/11/2020,Exp - Purchase Of Goods/Services - Contractors,Business Statistics Transformation,Parity Resources Limited,191406,"9,845.89",Information Management Services,Large,Programme Expenditure
UK Statistics Family,Office for National Statistics,18/11/2020,Exp - Short-Term Contract & Agency Staff - Full Cost,Labour Market,Parity Resources Limited,191406,732.60,Information Management Services,Large,Programme Expenditure
UK Statistics Family,Office for National Statistics,19/11/2020,Exp - Purchase Of Goods And Services Consultants,Digital Delivery,Xma Limited,191562,"1,406.26",Leasing of Devices,Large,Programme Expenditure
UK Statistics Family,Office for National Statistics,19/11/2020,Postage,Digital Delivery,Xma Limited,191562,"26,707.56",Leasing of Devices,Large,Programme Expenditure
UK Statistics Family,Office for National Statistics,19/11/2020,Exp - Purchase Of Goods/Services - IT Contractual Services,Digital Delivery,Xma Limited,191562,"99,439.96",Leasing of Devices,Large,Programme Expenditure
UK Statistics Family,Office for National Statistics,19/11/2020,Telecoms,Digital Delivery,Xma Limited,191562,"35,272.84",Leasing of Devices,Large,Programme Expenditure
UK Statistics Family,Office for National Statistics,19/11/2020,Exp - Purchase Of Goods And Services Consultants,Consultancy Management,Deloitte,191568,"106,924.80",Consultancy,Large,Programme Expenditure
UK Statistics Family,Office for National Statistics,19/11/2020,Exp - Purchase Of Goods/Services - IT Contractual Services,IT Operations,Pricewaterhousecoopers Llp,191569,"82,155.60",Consultancy,Large,Programme Expenditure
UK Statistics Family,Office for National Statistics,19/11/2020,Marketing & Media,Social Surveys Division,APS Group,191572,"76,137.00",Mailing Services,Large,Programme Expenditure
UK Statistics Family,Office for National Statistics,19/11/2020,EXP - PURCHASE OF GOODS/SERVICES -  NON IT CONTRACTUAL PAYMENTS,Covid Infection Survey,HH Associates Ltd,191573,"47,080.50",Print and Post Services,SME,Programme Expenditure
UK Statistics Family,Office for National Statistics,19/11/2020,Exp - Purchase Of Goods/Services - IT Contractual Services,Tech Delivery Next Gen IT And Infrastructure,Diegesis Limited,191579,"70,800.00",Information Management Services,Large,Programme Expenditure
UK Statistics Family,Office for National Statistics,19/11/2020,Exp - Purchase Of Goods/Services - Contractor Travel,Tech Delivery Next Gen IT And Infrastructure,Diegesis Limited,191579,512.39,Information Management Services,Large,Programme Expenditure
UK Statistics Family,Office for National Statistics,20/11/2020,FM Contract Payments,FM Payments,Vinci Construction UK Limited,191583,"137,508.66",Facilities Mangement Services,Large,Programme Expenditure
UK Statistics Family,Office for National Statistics,20/11/2020,Exp - Purchase Of Goods/Services - Contractors,Digital Delivery,Parity Resources Limited,191589,"13,722.00",Information Management Services,Large,Programme Expenditure
UK Statistics Family,Office for National Statistics,20/11/2020,Exp - Purchase Of Goods/Services - Contractors,Digital Delivery,Parity Resources Limited,191589,13995.07,Information Management Services,Large,Programme Expenditure
UK Statistics Family,Office for National Statistics,24/11/2020,Rent Payable,Property London,Tandem Property Asset Management LLP (Rent),191770,"243,432.00",Rental Charges,Large,Programme Expenditure
UK Statistics Family,Office for National Statistics,25/11/2020,Exp - Purchase Of Goods/Services - Contractors,Business Architecture,LA FOSSE ASSOCIATES LIMITED,191777,"16,180.00",Information Management Services,Large,Programme Expenditure
UK Statistics Family,Office for National Statistics,25/11/2020,Exp - Purchase Of Goods/Services - Contractors,Consultancy Management,LA FOSSE ASSOCIATES LIMITED,191777,"3,599.94",Information Management Services,Large,Programme Expenditure
UK Statistics Family,Office for National Statistics,25/11/2020,Exp - Purchase Of Goods/Services - Contractors,Consultancy Management,LA FOSSE ASSOCIATES LIMITED,191777,"3,150.00",Information Management Services,Large,Programme Expenditure
UK Statistics Family,Office for National Statistics,25/11/2020,Exp - Purchase Of Goods/Services - Contractors,Consultancy Management,LA FOSSE ASSOCIATES LIMITED,191777,"23,760.00",Information Management Services,Large,Programme Expenditure
UK Statistics Family,Office for National Statistics,25/11/2020,Exp - Purchase Of Goods/Services - Contractors,Consultancy Management,LA FOSSE ASSOCIATES LIMITED,191777,"2,750.00",Information Management Services,Large,Programme Expenditure
UK Statistics Family,Office for National Statistics,25/11/2020,Exp - Purchase Of Goods/Services - Contractors,Consultancy Management,LA FOSSE ASSOCIATES LIMITED,191777,"13,800.00",Information Management Services,Large,Programme Expenditure
UK Statistics Family,Office for National Statistics,25/11/2020,Exp - Purchase Of Goods/Services - Contractors,Data Architecture,LA FOSSE ASSOCIATES LIMITED,191777,"4,050.00",Information Management Services,Large,Programme Expenditure
UK Statistics Family,Office for National Statistics,25/11/2020,Exp - Purchase Of Goods/Services - Contractors,Business Statistics Transformation,LA FOSSE ASSOCIATES LIMITED,191777,"3,300.00",Information Management Services,Large,Programme Expenditure
UK Statistics Family,Office for National Statistics,25/11/2020,Marketing & Media,Stakeholder Engagement And Comms,M&C Saatchi UK Ltd,191778,"542,716.28",Marketing Services,Large,Programme Expenditure
UK Statistics Family,Office for National Statistics,26/11/2020,Exp - Purchase Of Goods/Services - IT Contractual Services,Tech Delivery Data As A Platform,Kainos,191907,"109,962.40",Information Management Services,Large,Programme Expenditure
UK Statistics Family,Office for National Statistics,26/11/2020,Hosting,Tech Delivery Data As A Platform,Kainos,191907,"7,323.08",Information Management Services,Large,Programme Expenditure
UK Statistics Family,Office for National Statistics,26/11/2020,Exp - Purchase Of Goods/Services - Incentive Payments,Survey Management,Park Retail Ltd,191908,"39,963.05",Survey Response Incentive Vouchers,Large,Programme Expenditure
UK Statistics Family,Office for National Statistics,26/11/2020,Exp - Purchase Of Goods/Services - Incentive Payments,Survey Management,Park Retail Ltd,191908,"16,369.49",Survey Response Incentive Vouchers,Large,Programme Expenditure
UK Statistics Family,Office for National Statistics,26/11/2020,Exp - Purchase Of Goods/Services - Incentive Payments,Survey Management,Park Retail Ltd,191908,"2,860.92",Survey Response Incentive Vouchers,Large,Programme Expenditure
UK Statistics Family,Office for National Statistics,26/11/2020,Exp - Purchase Of Goods/Services - Incentive Payments,Survey Management,Park Retail Ltd,191908,"8,027.63",Survey Response Incentive Vouchers,Large,Programme Expenditure
UK Statistics Family,Office for National Statistics,26/11/2020,Exp - Purchase Of Goods/Services - IT Contractual Services,Strategy And Architecture,Ibm United Kingdom Ltd,191910,"4,169.16",Information Management Services,Large,Programme Expenditure
UK Statistics Family,Office for National Statistics,26/11/2020,Exp - Purchase Of Goods/Services - IT Contractual Services,Tech Delivery Legacy Sp,Ibm United Kingdom Ltd,191910,"31,119.38",Information Management Services,Large,Programme Expenditure
UK Statistics Family,Office for National Statistics,26/11/2020,Telecoms,IT Operations,Bt Global Services,191912,"27,601.90",Telephony Charges,Large,Programme Expenditure
UK Statistics Family,Office for National Statistics,26/11/2020,Exp - Purchase Of Goods/Services - Contractors,Testing,La International,191924,"32,369.43",Information Management Services,SME,Programme Expenditure
UK Statistics Family,Office for National Statistics,26/11/2020,Exp - Purchase Of Goods/Services - Contractors,Portfolio Delivery,La International,191924,"3,366.90",Information Management Services,SME,Programme Expenditure
UK Statistics Family,Office for National Statistics,26/11/2020,Exp - Purchase Of Goods/Services - Contractors,Security Advisory,La International,191924,6941.7,Information Management Services,SME,Programme Expenditure
UK Statistics Family,Office for National Statistics,26/11/2020,Exp - Purchase Of Goods/Services - Contractors,Data Architecture,La International,191924,"7,112.52",Information Management Services,SME,Programme Expenditure
UK Statistics Family,Office for National Statistics,26/11/2020,Exp - Purchase Of Goods/Services - Contractors,Data Architecture,La International,191924,"3,524.22",Information Management Services,SME,Programme Expenditure
UK Statistics Family,Office for National Statistics,26/11/2020,Exp - Purchase Of Goods/Services - Contractors,Data Architecture,La International,191924,"3,588.30",Information Management Services,SME,Programme Expenditure
UK Statistics Family,Office for National Statistics,26/11/2020,Exp - Purchase Of Goods/Services - Contractors,Tech Delivery Legacy Sp,La International,191924,"17,621.10",Information Management Services,SME,Programme Expenditure
UK Statistics Family,Office for National Statistics,26/11/2020,Exp - Purchase Of Goods/Services - Contractors,IT Applications,La International,191924,"21,222.66",Information Management Services,SME,Programme Expenditure
UK Statistics Family,Office for National Statistics,26/11/2020,Exp - Purchase Of Goods/Services - Contractors,Digital Delivery,La International,191924,"8,970.84",Information Management Services,SME,Programme Expenditure
UK Statistics Family,Office for National Statistics,26/11/2020,Exp - Purchase Of Goods/Services - Contractors,Digital Delivery,La International,191924,"3,203.88",Information Management Services,SME,Programme Expenditure
UK Statistics Family,Office for National Statistics,26/11/2020,Exp - Short-Term Contract & Agency Staff - Full Cost,Social Survey Transformation Titchfield,La International,191924,797.45,Information Management Services,SME,Programme Expenditure
UK Statistics Family,Office for National Statistics,26/11/2020,Other Professional Services,Internal Audit,Pricewaterhousecoopers Llp,191927,"25,827.76",Consultancy,Large,Programme Expenditure
UK Statistics Family,Office for National Statistics,26/11/2020,Survey Incentive Vouchers,Property Services,Gresham Office Furniture Limited,191936,"67,420.80",Office Furniture,SME,Programme Expenditure
UK Statistics Family,Office for National Statistics,26/11/2020,Hosting,IT Operations,CTS (Cloud Technology Solutions Ltd),191938,"121,703.90",DST Infrastructure Preparation,Large,Programme Expenditure
UK Statistics Family,Office for National Statistics,26/11/2020,Exp - Purchase Of Goods And Services Consultants,Consultancy Management,Bloom Procurement Services Ltd,191945,"562,514.35",Consultancy,Large,Programme Expenditure
UK Statistics Family,Office for National Statistics,26/11/2020,Exp - Purchase Of Goods/Services - IT Contractual Services,IT Operations,Methods Business & Digital Technology Ltd,191947,"100,950.00",Information Management Services,Large,Programme Expenditure
UK Statistics Family,Office for National Statistics,26/11/2020,Exp - Purchase Of Goods/Services - IT Contractual Services,Tech Delivery Next Gen IT And Infrastructure,Diegesis Limited,191950,"5,460.00",Information Management Services,Large,Programme Expenditure
UK Statistics Family,Office for National Statistics,26/11/2020,Exp - Purchase Of Goods/Services - IT Contractual Services,IT Applications,Diegesis Limited,191950,"149,717.19",Information Management Services,Large,Programme Expenditure
UK Statistics Family,Office for National Statistics,26/11/2020,Exp - Purchase Of Goods/Services - Contractor Travel,IT Applications,Diegesis Limited,191950,62641.58,Information Management Services,Large,Programme Expenditure
UK Statistics Family,Office for National Statistics,26/11/2020,"ICT Outsourcing, Maintenance And Support",IT Operations,SoftwareONE UK Ltd,191951,"6,813.84",Software Licenses,SME,Programme Expenditure
UK Statistics Family,Office for National Statistics,26/11/2020,End User Software And Hardware,IT Operations,SoftwareONE UK Ltd,191951,34069.19,Software Licenses,SME,Programme Expenditure
UK Statistics Family,Office for National Statistics,26/11/2020,End User Software And Hardware,Office Of Chief Data And Information,Merkle,191960,118279.2,Software Licenses,SME,Programme Expenditure
UK Statistics Family,Office for National Statistics,05/11/2020,Exp - Purchase Of Goods/Services - Incentive Payments,Covid Infection Survey,Sodexo Motivation Solutions U.K. ltd,30002277,"55,421.28",Survey Response Incentive Vouchers,Large,Programme Expenditure
UK Statistics Family,Office for National Statistics,05/11/2020,Exp - Purchase Of Goods/Services - Incentive Payments,Covid Infection Survey,Sodexo Motivation Solutions U.K. ltd,30002279,"67,454.88",Survey Response Incentive Vouchers,Large,Programme Expenditure
UK Statistics Family,Office for National Statistics,05/11/2020,Exp - Purchase Of Goods/Services - Incentive Payments,Covid Infection Survey,Sodexo Motivation Solutions U.K. ltd,30002280,4077316.04,Survey Response Incentive Vouchers,Large,Programme Expenditure
UK Statistics Family,Office for National Statistics,09/11/2020,Exp - Purchase Of Goods/Services - Incentive Payments,Covid Infection Survey,Sodexo Motivation Solutions U.K. ltd,30002287,"49,126.08",Survey Response Incentive Vouchers,Large,Programme Expenditure
UK Statistics Family,Office for National Statistics,09/11/2020,Exp - Purchase Of Goods/Services - Incentive Payments,Covid Infection Survey,Sodexo Motivation Solutions U.K. ltd,30002301,"2,742,697.28",Survey Response Incentive Vouchers,Large,Programme Expenditure
UK Statistics Family,Office for National Statistics,16/11/2020,Exp - Purchase Of Goods/Services - Incentive Payments,Covid Infection Survey,Sodexo Motivation Solutions U.K. ltd,30002314,"651,721.12",Survey Response Incentive Vouchers,Large,Programme Expenditure
UK Statistics Family,Office for National Statistics,16/11/2020,Exp - Purchase Of Goods/Services - Incentive Payments,Covid Infection Survey,Sodexo Motivation Solutions U.K. ltd,30002315,"2,391,927.84",Survey Response Incentive Vouchers,Large,Programme Expenditure
UK Statistics Family,Office for National Statistics,16/11/2020,Exp - Purchase Of Goods/Services - Incentive Payments,Covid Infection Survey,Sodexo Motivation Solutions U.K. ltd,30002317,"53,441.28",Survey Response Incentive Vouchers,Large,Programme Expenditure
UK Statistics Family,Office for National Statistics,18/11/2020,Exp - Purchase Of Goods/Services - Incentive Payments,Covid Infection Survey,Sodexo Motivation Solutions U.K. ltd,30002329,"2,349,713.36",Survey Response Incentive Vouchers,Large,Programme Expenditure
UK Statistics Family,Office for National Statistics,19/11/2020,Exp - Purchase Of Goods/Services - Incentive Payments,Covid Infection Survey,Sodexo Motivation Solutions U.K. ltd,30002334,"497,162.64",Survey Response Incentive Vouchers,Large,Programme Expenditure
UK Statistics Family,Office for National Statistics,25/11/2020,PAYE,Census Field Op's,HM Revenue & Customs,30002352,"143,588.99",PAYE due,Large,Programme Expenditure
UK Statistics Family,Office for National Statistics,25/11/2020,Exp - Purchase Of Goods/Services - Incentive Payments,Covid Infection Survey,Sodexo Motivation Solutions U.K. ltd,30002353,"800,573.44",Survey Response Incentive Vouchers,Large,Programme Expenditure
UK Statistics Family,Office for National Statistics,25/11/2020,Other Goods And Services,Ask Business Services,Aviva,30002354,"30,746.40",Insurance Policy,Large,Programme Expenditure
UK Statistics Family,Office for National Statistics,27/11/2020,Exp - Purchase Of Goods/Services - Incentive Payments,Covid Infection Survey,Sodexo Motivation Solutions U.K. ltd,30002355,"48,506.40",Survey Response Incentive Vouchers,Large,Programme Expenditure
UK Statistics Family,Office for National Statistics,27/11/2020,IT Management And Change,Survey Processing Centre,Xerox UK Limited,30002356,"134,859.60",Leasing of Reprographic Equipment,Large,Programme Expenditure
UK Statistics Family,Office for National Statistics,30/11/2020,Training & Development,Learning And Capability,DataCamp,30002359,"90,250.97",Training and Educational Services,SME,Programme Expenditure
UK Statistics Family,Office for National Statistics,30/11/2020,Exp - Purchase Of Goods/Services - Incentive Payments,Covid Infection Survey,Sodexo Motivation Solutions U.K. ltd,30002363,"2,040,258.60",Survey Response Incentive Vouchers,Large,Programme Expenditure
UK Statistics Family,Office for National Statistics,30/11/2020,IT Management And Change,IT Operations,Centraal Bureau Voor De Statistiek,90001029,"204,900.95",Software Licenses,Large,Programme Expenditure
,,,,,,Report Total,"31,041,516.75",,,
